bitfinex/quotes_BTCUSD_20230904
["timestamp","ask_amount","ask_price","bid_price","bid_amount"]
[1693842044970,9.5292427,25881.0,25880.0,0.0001]
[1693842045220,9.5300227,25881.0,25880.0,0.0001]
[1693842045471,9.5306227,25881.0,25880.0,0.0001]
[1693842045749,11.76555608,25881.0,25880.0,0.0001]
[1693842046006,0.217491,25869.0,25868.0,0.01989699]
[1693842046267,3.74990359,25869.0,25868.0,0.01989699]
[1693842046533,5.82296514,25869.0,25868.0,0.01989699]
[1693842046788,2.95219948,25869.0,25868.0,0.01989699]
[1693842047106,5.74274942,25869.0,25868.0,0.01989699]
[1693842047310,3.42451886,25869.0,25868.0,0.01989699]
[1693842047551,4.65139286,25869.0,25868.0,0.01989699]
[1693842047764,3.51711551,25869.0,25868.0,0.01989699]
[1693842047972,3.83335817,25869.0,25868.0,0.01989699]
[1693842048209,3.83835817,25869.0,25868.0,0.01989699]
[1693842048684,2.70493447,25869.0,25868.0,0.01989699]
[1693842048894,1.79479938,25869.0,25868.0,0.01989699]
[1693842049107,3.04718046,25869.0,25868.0,0.01989699]
[1693842049541,3.07118046,25869.0,25868.0,0.01989699]
[1693842049758,3.94460985,25869.0,25868.0,0.01989699]
[1693842049966,6.14679123,25869.0,25868.0,0.01989699]
[1693842050173,8.30832923,25869.0,25868.0,0.01989699]
[1693842050385,8.63082923,25869.0,25868.0,0.01989699]
[1693842050593,8.62596923,25869.0,25868.0,0.01989699]
[1693842050813,8.62656923,25869.0,25868.0,0.01989699]
[1693842051061,8.62920923,25869.0,25868.0,0.01989699]
[1693842051244,9.62206923,25869.0,25868.0,0.01989699]
[1693842051456,9.62302923,25869.0,25868.0,0.01989699]
[1693842051667,9.40293437,25869.0,25868.0,0.01989699]
[1693842051883,9.42197437,25869.0,25868.0,0.01989699]
[1693842052099,9.42413437,25869.0,25868.0,0.01989699]
[1693842052347,9.43511437,25869.0,25868.0,0.01989699]
[1693842052568,9.43931437,25869.0,25868.0,0.01989699]
[1693842052781,9.41231437,25869.0,25868.0,0.01989699]
[1693842052989,10.60802337,25869.0,25868.0,0.01989699]
[1693842053226,9.51799437,25869.0,25868.0,0.01989699]
[1693842053449,9.52309437,25869.0,25868.0,0.01989699]
[1693842053663,10.9014901,25869.0,25868.0,0.01989699]
[1693842053876,11.57284223,25869.0,25868.0,0.01989699]
[1693842054088,11.56040149,25869.0,25868.0,0.01989699]
[1693842054302,11.52717125,25869.0,25868.0,0.01989699]
[1693842054520,11.53953125,25869.0,25868.0,0.01989699]
[1693842054759,10.92427912,25869.0,25868.0,0.01989699]
[1693842054975,11.4367548,25869.0,25868.0,0.01989699]
[1693842055181,11.4289548,25869.0,25868.0,0.01989699]
[1693842055389,11.4259548,25869.0,25868.0,0.01989699]
[1693842055596,11.4287148,25869.0,25868.0,0.01989699]
[1693842055798,11.4525948,25869.0,25868.0,0.01989699]
[1693842056033,0.057491,25862.0,25861.0,0.1997]
[1693842056310,0.117491,25861.0,25860.0,0.0001]
[1693842056535,2.87749459,25861.0,25860.0,0.0001]
[1693842056763,2.89749459,25861.0,25860.0,0.0001]
[1693842056983,3.04369493,25861.0,25860.0,0.0001]
[1693842057188,3.76008569,25861.0,25860.0,0.0001]
[1693842057404,7.26523794,25861.0,25860.0,0.0001]
[1693842057618,10.27507794,25861.0,25860.0,0.0001]
[1693842057824,10.27135794,25861.0,25860.0,0.0001]
[1693842058034,9.6669501,25861.0,25860.0,0.0001]
[1693842058236,8.47373781,25861.0,25860.0,0.0001]
[1693842058443,8.25225101,25861.0,25860.0,0.0001]
[1693842058658,5.25225101,25861.0,25860.0,0.0001]
[1693842059131,0.37803925,25860.0,25859.0,0.01499699]
[1693842059340,2.33147452,25860.0,25859.0,0.01499699]
[1693842059541,4.62485739,25860.0,25859.0,0.01499699]
[1693842059745,1.78468452,25860.0,25859.0,0.01499699]
[1693842059950,3.33147452,25860.0,25859.0,0.01499699]
[1693842060176,2.35547452,25860.0,25859.0,0.01499699]
[1693842060375,3.12886952,25860.0,25859.0,0.01499699]
[1693842060591,3.64681479,25860.0,25859.0,0.01499699]
[1693842060733,6.38626654,25860.0,25859.0,0.01499699]
[1693842061105,3.38626654,25860.0,25859.0,0.01499699]
[1693842061308,7.46138654,25860.0,25859.0,0.01499699]
[1693842061456,7.46726654,25860.0,25859.0,0.01499699]
[1693842061639,3.46726654,25860.0,25859.0,0.01499699]
[1693842061867,8.47038654,25860.0,25859.0,0.01499699]
[1693842062066,8.47398654,25860.0,25859.0,0.01499699]
[1693842062475,8.79150654,25860.0,25859.0,0.01499699]
[1693842062728,8.78784654,25860.0,25859.0,0.01499699]
[1693842062932,8.77416654,25860.0,25859.0,0.01499699]
[1693842063137,8.408857,25860.0,25859.0,0.01499699]
[1693842063348,8.432857,25860.0,25859.0,0.01499699]
[1693842063550,8.19232127,25860.0,25859.0,0.01499699]
[1693842063755,8.19232127,25860.0,25859.0,0.00999699]
[1693842063756,8.16832127,25860.0,25859.0,0.00999699]
[1693842063960,8.57896654,25860.0,25859.0,0.00999699]
[1693842064152,8.59496242,25860.0,25859.0,0.00999699]
[1693842064359,8.59373478,25860.0,25859.0,0.00999699]
[1693842064569,8.56973478,25860.0,25859.0,0.00999699]
[1693842064993,8.65889478,25860.0,25859.0,0.00999699]
[1693842067709,1.63765751,25860.0,25859.0,0.0328344]
[1693842067931,0.68165751,25860.0,25859.0,0.0328344]
[1693842068341,0.68165751,25860.0,25859.0,0.00999699]
[1693842068553,1.11213633,25860.0,25859.0,0.00999699]
[1693842068760,1.88553133,25860.0,25859.0,0.00999699]
[1693842069171,1.86153133,25860.0,25859.0,0.00999699]
[1693842069375,1.83753133,25860.0,25859.0,0.00999699]
[1693842069584,1.86153133,25860.0,25859.0,0.00999699]
[1693842069791,2.65892633,25860.0,25859.0,0.00999699]
[1693842070031,3.21134186,25860.0,25859.0,0.00999699]
[1693842070240,7.21134186,25860.0,25859.0,0.00999699]
[1693842070679,7.28100186,25860.0,25859.0,0.00999699]
[1693842070881,8.27644186,25860.0,25859.0,0.00999699]
[1693842071086,8.27740186,25860.0,25859.0,0.00999699]
[1693842071292,8.27674186,25860.0,25859.0,0.00999699]
[1693842071498,7.28454186,25860.0,25859.0,0.00999699]
[1693842071702,8.06267686,25860.0,25859.0,0.00999699]
[1693842071901,8.06423686,25860.0,25859.0,0.00999699]
[1693842072108,8.06381686,25860.0,25859.0,0.00999699]
[1693842072313,8.06363686,25860.0,25859.0,0.00999699]
[1693842072529,3.21031936,25856.0,25855.0,0.2182]
[1693842072761,3.21031936,25856.0,25854.0,0.019998]
[1693842072762,0.11626336,25855.0,25854.0,0.019998]
[1693842072988,3.04291611,25855.0,25854.0,0.019998]
[1693842073199,3.06291611,25855.0,25854.0,0.019998]
[1693842073401,0.72228411,25855.0,25854.0,0.019998]
[1693842074249,1.02896842,25855.0,25854.0,0.019998]
[1693842074455,2.57605642,25855.0,25854.0,0.019998]
[1693842074664,1.49582811,25855.0,25854.0,0.019998]
[1693842074879,0.46690863,25855.0,25854.0,0.213391]
[1693842075083,0.46690863,25855.0,25854.0,0.019998]
[1693842075796,0.49090863,25855.0,25854.0,0.019998]
[1693842075998,2.03799663,25855.0,25854.0,0.019998]
[1693842076202,2.32514789,25855.0,25854.0,0.019998]
[1693842076607,2.03799663,25855.0,25854.0,0.019998]
[1693842076837,0.49090863,25855.0,25854.0,0.04419826]
[1693842077440,0.49090863,25855.0,25854.0,0.019998]
[1693842077643,1.26445263,25855.0,25854.0,0.019998]
[1693842077868,1.47425139,25855.0,25854.0,0.019998]
[1693842078065,2.24779539,25855.0,25854.0,0.019998]
[1693842078500,1.47425139,25855.0,25854.0,0.019998]
[1693842079020,2.53705409,25855.0,25854.0,0.019998]
[1693842079435,3.31059809,25855.0,25854.0,0.019998]
[1693842079687,3.37059809,25855.0,25854.0,0.019998]
[1693842079849,0.05626336,25852.0,25851.0,0.3066]
[1693842080053,0.44290863,25852.0,25851.0,0.3066]
[1693842080263,0.44290863,25852.0,25849.0,0.293424]
[1693842080264,0.05626336,25850.0,25849.0,0.293424]
[1693842080475,0.05626336,25849.0,25848.0,0.492335]
[1693842080681,0.44290863,25849.0,25848.0,0.48187]
[1693842080878,0.44290863,25849.0,25848.0,0.50187]
[1693842081499,0.44290863,25849.0,25848.0,0.48187]
[1693842081706,0.48719949,25849.0,25848.0,0.1]
[1693842081959,0.05626336,25848.0,25847.0,0.486883]
[1693842082169,0.44290863,25848.0,25847.0,0.29344]
[1693842082620,0.44290863,25848.0,25847.0,0.486886]
[1693842082821,0.44290863,25848.0,25847.0,0.506886]
[1693842083021,0.59769463,25848.0,25847.0,0.506886]
[1693842083377,0.59769463,25848.0,25847.0,0.700332]
[1693842083588,0.60069463,25848.0,25847.0,0.700332]
[1693842085048,0.21404936,25848.0,25847.0,0.700332]
[1693842085259,0.157786,25848.0,25847.0,0.700332]
[1693842085471,0.157786,25848.0,25847.0,0.73901873]
[1693842085714,0.19404936,25848.0,25847.0,0.73901873]
[1693842085915,0.21404936,25848.0,25847.0,0.73901873]
[1693842086131,0.19404936,25848.0,25847.0,1.03901873]
[1693842086349,0.157786,25848.0,25847.0,1.03901873]
[1693842086555,0.157786,25848.0,25847.0,1.11215873]
[1693842086556,0.003,25848.0,25847.0,1.11215873]
[1693842086762,0.003,25848.0,25847.0,1.10483873]
[1693842086999,0.003,25848.0,25847.0,0.45868673]
[1693842088015,0.003,25848.0,25847.0,0.53410673]
[1693842088243,0.003,25848.0,25847.0,0.66657908]
[1693842088447,0.003,25848.0,25847.0,0.66801908]
[1693842088651,0.003,25848.0,25847.0,0.65853908]
[1693842088858,0.003,25848.0,25847.0,0.66261908]
[1693842089071,0.003,25848.0,25847.0,0.67251908]
[1693842089295,0.001,25848.0,25847.0,0.66243908]
[1693842089531,0.001,25848.0,25847.0,0.66249908]
[1693842089739,0.004,25848.0,25847.0,0.66709908]
[1693842089944,0.004,25848.0,25847.0,0.67927908]
[1693842090152,0.004,25848.0,25847.0,0.68131908]
[1693842090355,0.003,25848.0,25847.0,0.65869908]
[1693842090527,0.003,25848.0,25847.0,0.65923908]
[1693842090800,0.006,25848.0,25847.0,0.65859908]
[1693842091138,0.006,25848.0,25847.0,0.66015908]
[1693842091337,0.006,25848.0,25847.0,0.68583908]
[1693842091540,0.05626336,25852.0,25851.0,0.12]
[1693842091754,0.05626336,25852.0,25851.0,0.2637]
[1693842091954,0.07225149,25852.0,25851.0,0.2637]
[1693842092163,0.07225149,25852.0,25851.0,0.29007]
[1693842092835,0.08325149,25852.0,25851.0,0.29107]
[1693842093787,0.08325149,25852.0,25851.0,0.31396371]
[1693842094199,0.08825149,25852.0,25851.0,0.31496371]
[1693842094620,0.62962676,25852.0,25851.0,0.2657]
[1693842094811,0.94029687,25852.0,25851.0,0.2657]
[1693842095023,1.03243096,25852.0,25851.0,0.1457]
[1693842095248,1.7246671,25852.0,25851.0,0.1657]
[1693842096083,1.54041047,25852.0,25851.0,0.1657]
[1693842096717,1.3168629,25852.0,25851.0,0.1657]
[1693842096916,1.3168629,25852.0,25851.0,0.21946484]
[1693842097219,1.3168629,25852.0,25851.0,0.29946484]
[1693842097220,0.81442383,25852.0,25851.0,0.29946484]
[1693842097428,1.27149114,25852.0,25851.0,0.29946484]
[1693842097634,1.31775693,25852.0,25851.0,0.2457]
[1693842098054,1.08643927,25852.0,25851.0,0.1657]
[1693842098285,1.30246415,25852.0,25851.0,0.1457]
[1693842098498,1.30246415,25852.0,25851.0,0.002]
[1693842098724,1.46530874,25852.0,25851.0,0.002]
[1693842099131,1.74179972,25852.0,25851.0,0.002]
[1693842099338,1.73679972,25852.0,25851.0,0.001]
[1693842099544,1.73679972,25852.0,25848.0,0.02]
[1693842099545,0.05626336,25850.0,25848.0,0.02]
[1693842099769,0.05626336,25850.0,25847.0,0.2237]
[1693842099770,0.05626336,25848.0,25847.0,0.2437]
[1693842099984,0.58175537,25848.0,25847.0,0.2637]
[1693842100405,0.58175537,25848.0,25847.0,0.2437]
[1693842100617,0.67431385,25848.0,25847.0,0.2437]
[1693842100829,0.67431385,25848.0,25847.0,0.30321198]
[1693842101028,0.58175537,25848.0,25847.0,0.30321198]
[1693842101246,0.58275537,25848.0,25847.0,0.30321198]
[1693842101448,0.58275537,25848.0,25847.0,0.2437]
[1693842101650,0.58275537,25848.0,25847.0,0.27215663]
[1693842101875,0.67533649,25848.0,25847.0,0.27215663]
[1693842102108,0.58275537,25848.0,25847.0,0.27215663]
[1693842102315,0.1961101,25848.0,25847.0,0.27215663]
[1693842102522,0.30435653,25848.0,25847.0,0.27515663]
[1693842102735,0.30535653,25848.0,25847.0,0.27515663]
[1693842102938,0.16650979,25848.0,25847.0,0.27515663]
[1693842103390,0.07391368,25848.0,25847.0,0.27515663]
[1693842103598,0.01765032,25848.0,25847.0,0.2667]
[1693842103811,0.01765032,25848.0,25847.0,0.68828449]
[1693842104022,0.01765032,25848.0,25847.0,0.70880629]
[1693842104234,0.01765032,25848.0,25847.0,0.5872218]
[1693842104235,0.40429559,25848.0,25847.0,0.5872218]
[1693842105721,0.01765032,25848.0,25847.0,0.5667]
[1693842105937,0.01765032,25848.0,25847.0,0.68828912]
[1693842108485,0.01765032,25848.0,25847.0,0.71637861]
[1693842108913,0.002,25848.0,25847.0,0.71637861]
[1693842109537,0.002,25848.0,25847.0,0.68828912]
[1693842111477,0.26425668,25852.0,25851.0,0.1]
[1693842111667,0.15473,25852.0,25851.0,0.41835811]
[1693842111868,0.05626336,25853.0,25852.0,0.02]
[1693842112107,0.05626336,25853.0,25852.0,0.05637]
[1693842112369,0.05626336,25853.0,25851.0,0.2637]
[1693842112529,0.03626336,25852.0,25851.0,0.28923902]
[1693842112754,0.03626336,25852.0,25851.0,0.58923902]
[1693842113782,0.05626336,25854.0,25851.0,0.5637]
[1693842113989,0.44290863,25854.0,25853.0,0.1437]
[1693842114159,0.44290863,25854.0,25853.0,0.2437]
[1693842114578,0.44290863,25854.0,25853.0,0.26975263]
[1693842114779,0.44290863,25854.0,25853.0,0.312605]
[1693842114978,0.44290863,25854.0,25853.0,0.252605]
[1693842115308,0.44290863,25854.0,25853.0,0.232605]
[1693842115475,0.45290863,25854.0,25853.0,0.212605]
[1693842115678,0.45290863,25854.0,25853.0,0.18655237]
[1693842115679,0.06626336,25854.0,25853.0,0.18655237]
[1693842115836,0.01,25854.0,25853.0,0.28655237]
[1693842116072,0.1731,25856.0,25855.0,0.02]
[1693842116073,0.1531,25856.0,25855.0,0.02]
[1693842116242,0.42290863,25856.0,25855.0,0.1]
[1693842116486,0.42290863,25856.0,25855.0,0.4]
[1693842117273,0.42290863,25856.0,25855.0,1.39028848]
[1693842117474,0.44590863,25856.0,25855.0,1.39128848]
[1693842117682,0.46990863,25856.0,25855.0,1.39228848]
[1693842118100,0.46990863,25856.0,25855.0,1.49998848]
[1693842118312,0.08326336,25856.0,25855.0,1.41998848]
[1693842118740,0.047,25856.0,25855.0,1.41998848]
[1693842118880,0.047,25856.0,25855.0,1.39663]
[1693842119081,0.047,25856.0,25855.0,1.50022216]
[1693842120329,0.047,25856.0,25855.0,1.56185]
[1693842120529,0.047,25856.0,25855.0,1.56311]
[1693842120737,0.047,25856.0,25855.0,1.49663]
[1693842121311,0.023,25856.0,25855.0,1.49563]
[1693842121521,0.023,25856.0,25855.0,1.47563]
[1693842121702,0.032,25856.0,25855.0,1.58433]
[1693842122220,0.009,25856.0,25855.0,1.58333]
[1693842122456,0.009,25856.0,25855.0,1.61288843]
[1693842122457,0.014,25856.0,25855.0,1.61288843]
[1693842123978,0.40064527,25856.0,25855.0,1.48433]
[1693842124182,0.68960573,25856.0,25855.0,0.883244]
[1693842124385,1.47537007,25856.0,25855.0,0.002]
[1693842124595,0.70185607,25856.0,25855.0,0.002]
[1693842124810,0.70185607,25856.0,25855.0,0.496472]
[1693842125018,0.46915897,25856.0,25855.0,0.496472]
[1693842125225,0.46915897,25856.0,25855.0,0.71188009]
[1693842126032,0.46915897,25856.0,25855.0,0.689858]
[1693842126444,0.6888356,25856.0,25855.0,0.496472]
[1693842126662,0.6888356,25856.0,25855.0,0.303086]
[1693842126873,0.6888356,25856.0,25855.0,0.496472]
[1693842127076,3.26572867,25856.0,25855.0,0.002]
[1693842127282,2.78240498,25856.0,25855.0,0.002]
[1693842127491,2.78510066,25856.0,25855.0,0.002]
[1693842127699,2.49221467,25856.0,25855.0,0.002]
[1693842128086,3.26572867,25856.0,25855.0,0.002]
[1693842128294,3.25672867,25856.0,25855.0,0.001]
[1693842128494,0.05626336,25853.0,25852.0,0.301108]
[1693842128720,0.44290863,25853.0,25852.0,0.301108]
[1693842129979,0.44290863,25853.0,25852.0,0.1077]
[1693842130191,0.44290863,25853.0,25851.0,0.386821]
[1693842130192,0.05626336,25851.0,25850.0,0.494538]
[1693842130385,0.72049595,25851.0,25850.0,0.494538]
[1693842131246,0.72049595,25851.0,25850.0,0.687961]
[1693842131446,0.72149595,25851.0,25850.0,0.689961]
[1693842133114,0.72249595,25851.0,25850.0,0.308119]
[1693842133323,0.72249595,25851.0,25850.0,0.007]
[1693842134120,0.72149595,25851.0,25850.0,0.002]
[1693842134540,0.72249595,25851.0,25850.0,0.007]
[1693842134754,0.72149595,25851.0,25850.0,0.198423]
[1693842134990,0.74549595,25851.0,25850.0,0.198423]
[1693842135401,0.74549595,25851.0,25850.0,0.005]
[1693842135811,0.74449595,25851.0,25850.0,0.193423]
[1693842136224,0.76849595,25851.0,25850.0,0.193423]
[1693842136636,0.76849595,25851.0,25850.0,0.386846]
[1693842137054,0.49090863,25851.0,25850.0,0.386846]
[1693842137264,0.49090863,25851.0,25850.0,0.71124573]
[1693842137473,0.49090863,25851.0,25850.0,0.687969]
[1693842137706,0.10426336,25851.0,25850.0,0.687969]
[1693842138340,0.024,25851.0,25850.0,0.707969]
[1693842138562,0.048,25851.0,25850.0,1.378252]
[1693842138776,0.024,25851.0,25850.0,1.375492]
[1693842138990,0.05626336,25852.0,25850.0,1.309092]
[1693842139199,0.031,25851.0,25850.0,1.161692]
[1693842139333,0.04704074,25851.0,25850.0,1.377812]
[1693842139545,0.02404074,25851.0,25850.0,1.310092]
[1693842139764,0.008,25851.0,25850.0,1.310092]
[1693842139993,0.009,25851.0,25850.0,1.315092]
[1693842140416,0.001,25851.0,25850.0,1.314092]
[1693842140617,0.001,25851.0,25850.0,1.393652]
[1693842140793,0.002,25851.0,25850.0,1.391212]
[1693842140998,0.002,25851.0,25850.0,1.391632]
[1693842141336,0.002,25851.0,25850.0,1.384252]
[1693842141559,0.002,25851.0,25850.0,1.386772]
[1693842141694,0.002,25851.0,25850.0,1.386052]
[1693842141900,0.002,25851.0,25850.0,1.387132]
[1693842142135,0.002,25851.0,25850.0,1.387252]
[1693842142333,0.002,25851.0,25850.0,1.385932]
[1693842142598,0.002,25851.0,25850.0,1.383712]
[1693842142754,0.002,25851.0,25850.0,1.383472]
[1693842142949,0.002,25851.0,25850.0,1.166872]
[1693842143154,0.002,25851.0,25850.0,1.244292]
[1693842143556,0.002,25851.0,25850.0,1.26632697]
[1693842144988,0.38864527,25851.0,25850.0,1.26632697]
[1693842145191,0.38864527,25851.0,25850.0,0.730869]
[1693842145192,0.66776253,25851.0,25850.0,0.730869]
[1693842145389,0.68380986,25851.0,25850.0,0.730869]
[1693842147302,0.46095596,25851.0,25850.0,0.007]
[1693842147502,0.75783008,25851.0,25850.0,0.007]
[1693842148108,0.75683008,25851.0,25850.0,0.005]
[1693842148511,0.75683008,25851.0,25850.0,0.002]
[1693842148713,0.75683008,25851.0,25849.0,0.193429]
[1693842148714,0.05626336,25850.0,25849.0,0.193429]
[1693842148889,0.44290863,25850.0,25849.0,0.193429]
[1693842149763,0.44290863,25850.0,25849.0,0.38686]
[1693842150197,0.44290863,25850.0,25849.0,0.580291]
[1693842150553,0.44790863,25850.0,25849.0,0.581291]
[1693842150929,0.45590863,25850.0,25849.0,0.582291]
[1693842154032,0.47204321,25850.0,25849.0,0.582291]
[1693842154528,0.76111353,25850.0,25849.0,0.582291]
[1693842154965,0.76111353,25850.0,25849.0,0.002]
[1693842155183,0.99395678,25850.0,25849.0,0.002]
[1693842155387,0.76111353,25850.0,25849.0,0.002]
[1693842155589,0.76111353,25850.0,25849.0,0.582293]
[1693842157540,0.76111353,25850.0,25849.0,0.388862]
[1693842160083,0.76111353,25850.0,25849.0,0.195431]
[1693842160722,0.76111353,25850.0,25849.0,0.002]
[1693842161384,2.01943121,25850.0,25849.0,0.002]
[1693842161599,2.23670178,25850.0,25849.0,0.002]
[1693842161801,0.05626336,25847.0,25846.0,0.193447]
[1693842162006,0.44290863,25847.0,25846.0,0.3869]
[1693842163075,0.44290863,25847.0,25846.0,0.4947]
[1693842164110,0.05626336,25845.0,25844.0,0.193463]
[1693842164312,0.44290863,25845.0,25844.0,0.386931]
[1693842165353,0.44490863,25845.0,25844.0,0.193463]
[1693842165560,0.53637165,25845.0,25844.0,0.193463]
[1693842165761,0.55137165,25845.0,25844.0,0.193463]
[1693842166162,0.53537165,25845.0,25844.0,0.193463]
[1693842166370,0.71417965,25845.0,25844.0,0.193463]
[1693842167415,0.73817965,25845.0,25844.0,0.193463]
[1693842168440,1.09176428,25845.0,25844.0,0.193463]
[1693842168656,1.09176428,25845.0,25843.0,0.494742]
[1693842168872,0.47908292,25844.0,25843.0,0.494742]
[1693842169296,0.54770924,25844.0,25843.0,0.494742]
[1693842169912,0.57170924,25844.0,25843.0,0.494742]
[1693842170133,0.82582958,25844.0,25843.0,0.30127]
[1693842170340,0.05626336,25843.0,25842.0,0.019998]
[1693842170549,0.58155481,25843.0,25842.0,0.019998]
[1693842170752,0.97695553,25843.0,25842.0,0.019998]
[1693842170967,2.66341257,25843.0,25842.0,0.019998]
[1693842171171,2.52476153,25843.0,25842.0,0.019998]
[1693842171587,3.00204272,25843.0,25842.0,0.019998]
[1693842171798,3.49903458,25843.0,25842.0,0.019998]
[1693842172004,3.31389346,25843.0,25842.0,0.019998]
[1693842172208,3.29789346,25843.0,25842.0,0.019998]
[1693842172413,3.33489346,25843.0,25842.0,0.019998]
[1693842172617,3.31089346,25843.0,25842.0,0.019998]
[1693842173005,3.32189346,25843.0,25842.0,0.019998]
[1693842173257,3.34589346,25843.0,25842.0,0.019998]
[1693842173471,1.17961622,25843.0,25842.0,0.127798]
[1693842173703,1.13300463,25843.0,25842.0,0.73390283]
[1693842173905,0.67572344,25843.0,25842.0,0.54041983]
[1693842174931,0.67572344,25843.0,25842.0,0.73390283]
[1693842175262,0.75805762,25843.0,25842.0,0.708247]
[1693842175469,0.16102335,25844.0,25842.0,1.136047]
[1693842175679,0.06862632,25844.0,25842.0,0.920447]
[1693842176547,0.009,25843.0,25842.0,0.922447]
[1693842176749,0.009,25843.0,25842.0,1.16403751]
[1693842176974,0.08062632,25844.0,25842.0,1.16303751]
[1693842177171,0.08062632,25844.0,25843.0,0.2156]
[1693842177372,0.08062632,25844.0,25843.0,0.796025]
[1693842177373,0.08262632,25844.0,25843.0,0.796025]
[1693842177837,0.07062632,25844.0,25843.0,0.796025]
[1693842178018,0.07162632,25844.0,25843.0,0.724125]
[1693842178416,0.07062632,25844.0,25843.0,0.724125]
[1693842178591,0.07062632,25844.0,25843.0,0.730125]
[1693842178592,0.07162632,25844.0,25843.0,0.730125]
[1693842179137,0.06962632,25844.0,25843.0,0.730125]
[1693842179463,0.07062632,25844.0,25843.0,0.739125]
[1693842179791,0.07062632,25844.0,25843.0,0.76278063]
[1693842183468,0.45727159,25844.0,25843.0,0.76278063]
[1693842183992,0.45727159,25844.0,25843.0,0.739125]
[1693842184201,0.78284257,25844.0,25843.0,0.54565]
[1693842184410,0.78284257,25844.0,25843.0,0.1587]
[1693842184616,0.71239491,25844.0,25843.0,0.015]
[1693842185449,0.80479194,25844.0,25843.0,0.015]
[1693842186076,0.94238948,25844.0,25843.0,0.006]
[1693842186283,1.23663772,25844.0,25843.0,0.006]
[1693842186514,2.70171425,25844.0,25843.0,0.006]
[1693842186720,0.05626336,25841.0,25840.0,0.0001]
[1693842186931,2.18266209,25841.0,25840.0,0.0001]
[1693842187138,2.70079622,25841.0,25840.0,0.0001]
[1693842187348,2.96058,25841.0,25840.0,0.0001]
[1693842187556,3.01957495,25841.0,25837.0,0.382131]
[1693842187762,0.05626336,25838.0,25837.0,0.188615]
[1693842187982,0.44290863,25838.0,25837.0,0.188615]
[1693842188400,0.05626336,25837.0,25836.0,0.38705]
[1693842188605,0.44290863,25837.0,25836.0,0.193525]
[1693842189474,0.44290863,25837.0,25836.0,0.193528]
[1693842189676,0.46090863,25837.0,25836.0,0.389056]
[1693842190496,0.67695889,25837.0,25836.0,0.002]
[1693842190698,0.77054853,25837.0,25836.0,0.004]
[1693842191231,1.63702665,25837.0,25836.0,0.004]
[1693842191461,2.45730721,25837.0,25836.0,0.004]
[1693842191669,2.64205939,25837.0,25836.0,0.004]
[1693842191877,2.42600913,25837.0,25836.0,0.004]
[1693842192088,2.51493985,25837.0,25836.0,0.004]
[1693842192257,2.52165914,25837.0,25836.0,0.004]
[1693842192464,4.1603287,25837.0,25836.0,0.004]
[1693842192662,4.1603287,25837.0,25834.0,0.019998]
[1693842192663,0.22426336,25835.0,25834.0,0.019998]
[1693842192943,2.95333763,25835.0,25834.0,0.019998]
[1693842193082,3.6414654,25835.0,25834.0,0.019998]
[1693842193485,3.41072665,25835.0,25834.0,0.019998]
[1693842193887,3.41072665,25835.0,25828.0,0.019998]
[1693842193888,0.38664527,25819.0,25814.0,0.09178371]
[1693842194132,0.23626336,25811.0,25810.0,0.01989699]
[1693842194351,0.07626336,25809.0,25802.0,0.28622047]
[1693842194560,0.07626336,25802.0,25801.0,0.193786]
[1693842194771,0.09224445,25807.0,25801.0,0.43134445]
[1693842194974,0.02,25810.0,25803.0,0.08]
[1693842194975,0.38664527,25806.0,25803.0,0.08]
[1693842195184,0.09224445,25810.0,25809.0,0.08]
[1693842195430,0.04024036,25812.0,25811.0,0.08373664]
[1693842195613,0.72849134,25812.0,25811.0,0.59964923]
[1693842195817,0.72849637,25812.0,25811.0,1.00048087]
[1693842195989,0.13221322,25812.0,25811.0,1.00048087]
[1693842196198,0.04024036,25812.0,25811.0,1.00048087]
[1693842196408,0.04024036,25812.0,25811.0,1.10695369]
[1693842196603,0.06424036,25812.0,25811.0,1.10795369]
[1693842196812,0.06424036,25812.0,25811.0,1.25165369]
[1693842197374,0.25779965,25812.0,25811.0,1.25165369]
[1693842197781,0.23479965,25812.0,25811.0,1.53072355]
[1693842198007,0.23379965,25812.0,25811.0,1.25065369]
[1693842198234,0.23479965,25812.0,25811.0,1.25665369]
[1693842198469,0.23779965,25812.0,25811.0,1.25965369]
[1693842198843,0.23779965,25812.0,25811.0,1.25665369]
[1693842198844,0.23479965,25812.0,25811.0,1.25665369]
[1693842199051,0.23479965,25812.0,25811.0,1.47747226]
[1693842199279,0.04224036,25812.0,25811.0,1.48047226]
[1693842199476,0.04224036,25812.0,25811.0,1.25965369]
[1693842199677,0.04224036,25812.0,25811.0,1.53614784]
[1693842199881,0.04224036,25812.0,25811.0,1.2598094]
[1693842200286,0.002,25812.0,25811.0,1.2598094]
[1693842200489,0.002,25812.0,25811.0,1.51632031]
[1693842200803,0.002,25812.0,25811.0,1.45823892]
[1693842202252,0.002,25812.0,25811.0,1.26452392]
[1693842202459,0.08391861,25812.0,25811.0,0.70801301]
[1693842203075,0.08391861,25812.0,25811.0,1.21701587]
[1693842203076,0.002,25812.0,25811.0,1.21701587]
[1693842203317,0.002,25812.0,25811.0,1.33155657]
[1693842203882,0.002,25812.0,25811.0,1.35970095]
[1693842204232,0.04971163,25817.0,25812.0,0.05808139]
[1693842204477,0.09536688,25817.0,25816.0,0.2874]
[1693842204683,0.04565525,25817.0,25816.0,1.12941411]
[1693842204895,0.04565525,25817.0,25816.0,0.974756]
[1693842205304,0.04565525,25817.0,25816.0,1.024734]
[1693842205921,0.06565525,25817.0,25816.0,1.024734]
[1693842206533,0.13231025,25817.0,25816.0,1.024734]
[1693842206734,0.13231025,25817.0,25816.0,0.831056]
[1693842206954,0.13531025,25817.0,25816.0,1.06908801]
[1693842207180,0.13231025,25817.0,25816.0,1.26176601]
[1693842207592,0.15631025,25817.0,25816.0,1.26276601]
[1693842207801,0.13131025,25817.0,25816.0,1.26176601]
[1693842208230,0.16731025,25817.0,25816.0,1.26476601]
[1693842208430,0.16731025,25817.0,25816.0,1.26376601]
[1693842208431,0.15531025,25817.0,25816.0,1.26376601]
[1693842208633,0.13131025,25817.0,25816.0,1.26176601]
[1693842208842,0.14331025,25817.0,25816.0,1.26276601]
[1693842209053,0.085655,25817.0,25816.0,1.170434]
[1693842209269,0.04953483,25822.0,25817.0,0.05808139]
[1693842209463,0.04565525,25821.0,25820.0,0.1437]
[1693842209668,0.04565525,25821.0,25820.0,0.830996]